fUSD/lending_fUSD_20241101
["ID","MTS","AMOUNT","RATE_DAILY","PERIOD"]
[341135902,1730453431491,-179.16,0.00037662,2]
[341135905,1730453431500,-47.700026,0.0003888,90]
[341135907,1730453431512,-4183.5135596,0.0003888,90]
[341135908,1730453431521,-93.29998434,0.00039,7]
[341135916,1730453431650,-1046.27046531,0.00039,7]
[341135958,1730453437474,-10498.97770966,0.00039,7]
[341135960,1730453437483,-500.0,0.00039003,63]
[341135962,1730453437493,-250.0,0.00039016,2]
[341135963,1730453437502,-250.0,0.00039088,120]
[341135964,1730453437511,-334.6218047,0.00039088,2]
[341135965,1730453437533,-665.3781953,0.00039088,2]
[341135966,1730453437542,-250.0,0.00039127,2]
[341135967,1730453437552,-212.92,0.00039175,2]
[341135968,1730453437561,-150.0,0.00039209,2]
[341135969,1730453437571,-200.0,0.00039238,2]
[341135970,1730453437580,-150.99,0.00039238,2]
[341135971,1730453437590,-2043.2,0.00039238,30]
[341135972,1730453437599,-3473.493263,0.0003932,2]
[341135973,1730453437622,-869.3908284,0.0003932,2]
[341135974,1730453437633,-939.41885868,0.0003932,2]
[341135975,1730453437648,-5183.19999995,0.0003932,2]
[341135976,1730453437660,-13434.49704997,0.0003932,2]
[341135977,1730453437669,-578.71,0.00039452,2]
[341135978,1730453437678,-431.71,0.00039452,2]
[341135979,1730453437687,-431.71,0.00039452,2]
[341135980,1730453437696,-431.71,0.00039452,2]
[341135981,1730453437705,-431.71,0.00039452,2]
[341135982,1730453437714,-715.6,0.00039452,2]
[341135983,1730453437723,-166.0,0.00039452,60]
[341135984,1730453437732,-431.71,0.00039456,2]
[341135985,1730453437742,-431.71,0.00039456,2]
[341135986,1730453437751,-431.71,0.00039456,2]
[341135987,1730453437760,-431.71,0.00039456,2]
[341135988,1730453437769,-431.71,0.00039478,2]
[341135989,1730453437778,-411.48063059,0.00039565,2]
[341135990,1730453437787,-431.71,0.00039578,2]
[341135991,1730453437797,-431.71,0.00039578,2]
[341135992,1730453437806,-733.9,0.00039582,2]
[341135993,1730453437815,-167.01,0.00039589,2]
[341135994,1730453437824,-170.091,0.00039639,2]
[341135995,1730453437833,-170.091,0.00039639,2]
[341135996,1730453437843,-170.091,0.00039639,2]
[341135997,1730453437852,-176.14,0.00039648,2]
[341135998,1730453437861,-431.71,0.00039678,2]
[341135999,1730453437871,-431.71,0.00039678,2]
[341136000,1730453437879,-411.48063059,0.00039883,2]
[341136001,1730453437889,-533.2334,0.00039888,7]
[341136002,1730453437898,-4000.0,0.00039948,5]
[341136003,1730453437907,-150.485,0.00039948,56]
[341136004,1730453437916,-6928.63354286,0.0004,2]
[341136005,1730453437925,-3892.62379953,0.0004,2]
[341136006,1730453437935,-4411.00836891,0.0004,30]
[341136007,1730453437944,-12561.09489809,0.0004,30]
[341136008,1730453437953,-411.48063059,0.00040236,2]
[341136009,1730453437962,-1044.81129126,0.00040285,2]
[341136010,1730453437971,-152.0,0.00040376,3]
[341136011,1730453437980,-396.92604589,0.00040399,2]
[341136012,1730453437989,-160.97,0.00040478,2]
[341136013,1730453437999,-32296.31755971,0.000406,2]
[341136014,1730453438008,-8847.70197118,0.0004061,2]
[341136015,1730453438019,-3486.01559231,0.0004061,2]
[341136016,1730453438050,-86677.766464,0.0004061,2]
[341136017,1730453438059,-32296.31755971,0.00040618,2]
[341136018,1730453438068,-99011.48402749,0.00040629,2]
[341136019,1730453438077,-2672.89035601,0.00040631,2]
[341136020,1730453438086,-99011.48402749,0.00040703,2]
[341136021,1730453438096,-2672.89035601,0.00040709,2]
[341136022,1730453438105,-99011.48402749,0.00040721,2]
[341136023,1730453438114,-32296.31755971,0.00040728,2]
[341136024,1730453438123,-86787.37481267,0.00040768,2]
[341136028,1730453442552,-11.4681416,0.00040768,2]
[341136029,1730453442625,-7754.26068268,0.00040768,2]
[341136047,1730453445584,-260.86765174,0.00040768,2]
[341136048,1730453445654,-4197.5127388,0.00040768,2]
[341136049,1730453445664,-2672.89035601,0.00040769,2]
[341136050,1730453445673,-32296.31755971,0.00040776,2]
[341136051,1730453445682,-2672.89035601,0.00040778,2]
[341136052,1730453445692,-2672.89035601,0.0004078,2]
[341136053,1730453445701,-32296.31755971,0.00040788,2]
[341136054,1730453445711,-1874.66257942,0.00041,60]
[341136055,1730453445721,-150.0,0.00041145,2]
[341136056,1730453445731,-751.64,0.00041156,10]
[341136057,1730453445740,-500.0,0.00041165,31]
[341136058,1730453445750,-614.48234218,0.00041165,31]
[341136059,1730453445761,-502.09536571,0.00041165,31]
[341136060,1730453445770,-500.0,0.00041165,31]
[341136061,1730453445780,-500.0,0.00041165,31]
[341136062,1730453445789,-491.94333382,0.00041165,31]
[341136063,1730453445800,-500.0,0.00041165,31]
[341136064,1730453445810,-500.0,0.00041165,31]
[341136065,1730453445821,-500.0,0.00041165,31]
[341136066,1730453445831,-500.0,0.00041165,31]
[341136067,1730453445841,-500.0,0.00041165,31]
[341136068,1730453445851,-500.0,0.00041165,31]
[341136069,1730453445860,-500.0,0.00041165,31]
[341136071,1730453445870,-500.0,0.00041165,31]
[341136073,1730453445880,-500.0,0.00041165,31]
[341136075,1730453445890,-500.0,0.00041165,31]
[341136077,1730453445899,-500.0,0.00041165,31]
[341136079,1730453445909,-500.0,0.00041165,31]
[341136080,1730453445919,-500.0,0.00041165,31]
[341136082,1730453445929,-1622.1703518,0.00041166,15]
[341136084,1730453445938,-624.5196,0.00041167,2]
[341136086,1730453445947,-6671.7666,0.00041167,2]
[341136088,1730453445956,-157.34,0.00041256,30]
[341136090,1730453445966,-500.0,0.00041265,3]
[341136092,1730453445976,-529.91,0.00041265,3]
[341136094,1730453445986,-500.0,0.00041265,3]
[341136096,1730453445996,-225.16233054,0.00041265,3]
[341136098,1730453446006,-500.0,0.00041265,3]
[341136100,1730453446016,-500.0,0.00041265,3]
[341136102,1730453446026,-179.0,0.00041266,2]
[341136103,1730453446035,-12139.60431907,0.00041266,2]
[341136105,1730453446045,-13400.42360231,0.00041266,2]
[341136109,1730453502973,153.0,0.00035616,2]
[341136110,1730453503779,153.0,0.00035616,2]
[341136111,1730453506814,190.793,0.00035972,2]
[341136112,1730453508563,165.214,0.00035972,2]
[341136113,1730453511438,50000.0,0.00044821,20]
[341136114,1730453522557,50000.0,0.00044821,21]
[341136115,1730453526134,50000.0,0.00044821,22]
[341136116,1730453529570,50000.0,0.00044821,23]
[341136117,1730453532837,50000.0,0.00044821,24]
[341136118,1730453652068,1500.0,0.00044821,120]
[341136119,1730453713836,157.17,0.00015342,2]
[341136120,1730453780704,50000.0,0.00044821,20]
[341136121,1730453784339,50000.0,0.00044821,21]
[341136122,1730453789958,50000.0,0.00044821,22]
[341136123,1730453793948,50000.0,0.00044821,23]
[341136124,1730453796848,50000.0,0.00044821,24]
[341136125,1730454055447,50000.0,0.00044819,20]
[341136126,1730454062452,50000.0,0.00044819,21]
[341136127,1730454063279,250.0,0.00017,2]
[341136128,1730454069084,1925.97294419,0.00044819,20]
[341136129,1730454429144,-423.75855314,0.000344,2]
[341136130,1730454435137,-605.24144686,0.000344,2]
[341136131,1730454435160,-1280.112064,0.00034448,2]
[341136132,1730454435181,-150.0,0.00034548,10]
[341136133,1730454435204,-262.82112176,0.00035316,2]
[341136134,1730454435227,-153.0,0.00035616,2]
[341136135,1730454435247,-153.0,0.00035616,2]
[341136136,1730454435268,-153.0,0.00035616,2]
[341136137,1730454435291,-153.0,0.00035616,2]
[341136138,1730454435310,-153.0,0.00035616,2]
[341136139,1730454435331,-153.0,0.00035616,2]
[341136140,1730454435352,-153.0,0.00035616,2]
[341136141,1730454435375,-153.0,0.00035616,2]
[341136142,1730454435397,-153.0,0.00035616,2]
[341136143,1730454435419,-153.0,0.00035616,2]
[341136144,1730454435439,-153.0,0.00035616,2]
[341136145,1730454435460,-153.0,0.00035616,2]
[341136146,1730454435480,-153.0,0.00035616,2]
[341136147,1730454435500,-153.0,0.00035616,2]
[341136148,1730454435523,-153.0,0.00035616,2]
[341136149,1730454435546,-153.0,0.00035616,2]
[341136150,1730454435566,-153.0,0.00035616,2]
[341136151,1730454435586,-153.0,0.00035616,2]
[341136152,1730454435606,-153.0,0.00035616,2]
[341136153,1730454435627,-153.0,0.00035616,2]
[341136154,1730454435647,-153.0,0.00035616,2]
[341136155,1730454435670,-153.0,0.00035616,2]
[341136156,1730454435690,-153.0,0.00035616,2]
[341136157,1730454435710,-153.0,0.00035616,2]
[341136158,1730454435729,-153.0,0.00035616,2]
[341136159,1730454435750,-153.0,0.00035616,2]
[341136160,1730454435770,-153.0,0.00035616,2]
[341136161,1730454435796,-3142.1022148,0.00035616,2]
[341136162,1730454443199,-1.19051455,0.00035616,2]
[341136163,1730454443219,-190.794,0.00035972,2]
[341136164,1730454443238,-247.17875,0.00035972,2]
[341136165,1730454443257,-698.92,0.00036952,2]
[341136166,1730454443284,-161.47763536,0.000372,103]
[341136167,1730454443306,-155.35,0.00037968,2]
[341136168,1730454443325,-150.99,0.00038185,2]
[341136169,1730454443345,-160.52,0.00038332,2]
[341136170,1730454443365,-5389.03484088,0.00038332,2]
[341136171,1730454546091,-806.84441308,0.00031,30]
[341136172,1730454546117,-500.0,0.000313,30]
[341136173,1730454553729,248.98175969,0.00017605,2]
[341136174,1730454571114,-336.817,0.00035972,2]
[341136175,1730454571135,-185.0755,0.00035972,2]
[341136180,1730454631750,-408.22853373,0.00038332,2]
[341136181,1730454631766,-1524.82662539,0.00038332,2]
[341136182,1730454631778,-12444.81,0.00038332,10]
[341136183,1730454631787,-219.87,0.00038332,2]
[341136184,1730454631797,-1463.07,0.00038848,2]
[341136185,1730454631808,-6551.93,0.0003887,2]
[341136186,1730454631817,-1164.3,0.00038873,120]
[341136187,1730454631827,-200.0,0.0003889,2]
[341136188,1730454631836,-200.0,0.00038897,2]
[341136189,1730454631845,-1456.57,0.00038897,2]
[341136190,1730454631855,-150.0,0.00038988,2]
[341136191,1730454631864,-250.0,0.0003899,120]
[341136192,1730454631874,-250.0,0.00039007,2]
[341136193,1730454631883,-23900.0,0.00039013,2]
[341136194,1730454631892,-1074.95,0.00039031,2]
[341136195,1730454631902,-497.93,0.00039153,60]
[341136196,1730454631912,-698.92,0.00039216,2]
[341136197,1730454631922,-517.42,0.00039242,2]
[341136198,1730454631932,-289.23,0.0003927,2]
[341136199,1730454631941,-200.0,0.00039491,2]
[341136200,1730454631951,-5071.0,0.00039802,2]
[341136201,1730454631961,-176.14,0.0003985,2]
[341136202,1730454631971,-3333.0,0.00039902,2]
[341136204,1730454631980,-211.27,0.00040174,120]
[341136206,1730454631989,-150.48576882,0.00040174,57]
[341136208,1730454631999,-7642.90059084,0.00040174,30]
[341136209,1730454632011,-1635.81140916,0.00040174,30]
[341136210,1730454632020,-2689.8522,0.00040235,2]
[341136211,1730454632030,-152.0,0.00040376,3]
[341136212,1730454632040,-1459.95331662,0.00041164,15]
[341136213,1730454632049,-258.89604027,0.00041251,28]
[341136214,1730454632059,-786.74,0.00041254,30]
[341136215,1730454632069,-500.0,0.00041263,31]
[341136216,1730454632079,-443.54925931,0.00041263,31]
[341136218,1730454632088,-500.0,0.00041264,3]
[341136219,1730454632097,-500.0,0.00041264,3]
[341136220,1730454632107,-500.0,0.00041264,3]
[341136221,1730454632116,-187.88420761,0.00041264,3]
[341136222,1730454632126,-500.0,0.00041264,3]
[341136223,1730454632136,-500.0,0.00041264,3]
[341136224,1730454632146,-500.0,0.00041264,3]
[341136225,1730454632155,-500.0,0.00041264,3]
[341136226,1730454632165,-500.0,0.00041264,3]
[341136227,1730454632174,-500.0,0.00041264,3]
[341136228,1730454632184,-500.0,0.00041264,3]
[341136229,1730454632193,-416.54181938,0.00041264,3]
[341136230,1730454632203,-224.49,0.00041264,3]
[341136231,1730454632213,-500.0,0.00041264,3]
[341136232,1730454632223,-500.0,0.00041264,3]
[341136233,1730454632232,-609.63,0.00041264,3]
[341136234,1730454632243,-500.0,0.00041264,3]
[341136235,1730454632252,-500.0,0.00041264,3]
[341136236,1730454632260,-500.0,0.00041264,3]
[341136237,1730454632269,-500.0,0.00041264,3]
[341136238,1730454632279,-500.0,0.00041264,3]
[341136239,1730454632289,-355.39260104,0.00041264,3]
[341136240,1730454632298,-500.0,0.00041264,3]
[341136241,1730454632310,-625.12,0.00041264,3]
[341136242,1730454632320,-500.0,0.00041264,3]
[341136243,1730454632329,-500.0,0.00041264,3]
[341136244,1730454632339,-500.0,0.00041264,3]
[341136245,1730454632348,-72.74685891,0.00041264,3]
[341136246,1730454632376,-427.25314109,0.00041264,3]
[341136247,1730454632385,-500.0,0.00041264,3]
[341136248,1730454632395,-239.62482448,0.00041264,3]
[341136252,1730454637744,-16.62843043,0.00041264,3]
[341136253,1730454638105,-337.91674509,0.00041264,3]
[341136254,1730454638114,-500.0,0.00041264,3]
[341136255,1730454638123,-225.55846018,0.00041264,3]
[341136256,1730454638135,-486.28153982,0.00041264,3]
[341136257,1730454638144,-500.0,0.00041264,3]
[341136258,1730454638153,-500.0,0.00041264,3]
[341136259,1730454638162,-500.0,0.00041264,3]
[341136260,1730454638171,-500.0,0.00041264,3]
[341136261,1730454638181,-500.0,0.00041264,3]
[341136262,1730454638191,-500.0,0.00041264,3]
[341136263,1730454638200,-1373.59,0.00041264,3]
[341136264,1730454638209,-500.0,0.00041264,3]
[341136265,1730454638218,-500.0,0.00041264,3]
[341136266,1730454638227,-500.0,0.00041264,3]
[341136267,1730454638237,-140.12846018,0.00041264,3]
[341136268,1730454638248,-261.77340198,0.00041264,3]
[341136269,1730454638259,-98.09813784,0.00041264,3]
[341136270,1730454638268,-1216.9,0.00041264,3]
[341136271,1730454638277,-258.33289566,0.00041264,3]
[341136272,1730454638286,-500.0,0.00041264,3]
[341136273,1730454638295,-500.0,0.00041264,3]
[341136274,1730454638305,-500.0,0.00041264,3]
[341136275,1730454638315,-160.09171283,0.00041264,3]
[341136293,1730454639784,-1000.0,0.00041165,2]
[341136294,1730454639796,-339.90828717,0.00041264,3]
[341136295,1730454639807,-760.14,0.00041264,3]
[341136297,1730454639816,-500.0,0.00041264,3]
[341136299,1730454639828,-500.0,0.00041264,3]
[341136301,1730454639838,-200.0,0.00041264,3]
[341136303,1730454639849,-500.0,0.00041264,3]
[341136305,1730454639858,-500.0,0.00041264,3]
[341136307,1730454639869,-500.0,0.00041264,3]
[341136309,1730454639880,-500.0,0.00041264,3]
[341136310,1730454639891,-824.67,0.00041264,3]
[341136311,1730454639901,-500.0,0.00041264,3]
[341136312,1730454639910,-500.0,0.00041264,3]
[341136313,1730454639919,-500.0,0.00041264,3]
[341136314,1730454639929,-500.0,0.00041264,3]
[341136315,1730454639939,-500.0,0.00041264,3]
[341136316,1730454639948,-388.45182282,0.00041264,3]
[341136317,1730454639959,-196.76817718,0.00041264,3]
[341136318,1730454639969,-500.0,0.00041264,3]
[341136319,1730454639979,-285.29236621,0.00041264,3]
[341136320,1730454640180,-214.70763379,0.00041264,3]
[341136321,1730454640189,-303.18429917,0.00041264,3]
[341136322,1730454640198,-693.96738359,0.00041264,3]
[341136323,1730454640210,-201.18261641,0.00041264,3]
[341136324,1730454640220,-500.0,0.00041264,3]
[341136325,1730454640231,-108.20654145,0.00041264,3]
[341136326,1730454640244,-391.79345855,0.00041264,3]
[341136327,1730454640254,-312.84732648,0.00041264,3]
[341136328,1730454640272,-1127.98267352,0.00041264,3]
[341136329,1730454640283,-500.0,0.00041264,3]
[341136330,1730454640293,-500.0,0.00041264,3]
[341136331,1730454640305,-13.23732648,0.00041264,3]
[341136346,1730454642656,-486.76267352,0.00041264,3]
[341136347,1730454642666,-500.0,0.00041264,3]
[341136348,1730454642675,-500.0,0.00041264,3]
[341136349,1730454642686,-500.0,0.00041264,3]
[341136350,1730454642695,-500.0,0.00041264,3]
[341136351,1730454642704,-324.51827861,0.00041264,3]
[341136352,1730454642823,-178.59408463,0.00041264,3]
[341136353,1730454642834,-500.0,0.00041264,3]
[341136354,1730454642844,-16.53591537,0.00041264,3]
[341136355,1730454642988,-263.39763474,0.00041264,3]
[341136394,1730454645704,-947.22644989,0.00041264,3]
[341136395,1730454645714,-500.0,0.00041264,3]
[341136396,1730454645724,-500.0,0.00041264,3]
[341136397,1730454645737,-207.08425231,0.00041264,3]
[341136398,1730454645746,-504.60680511,0.00041264,3]
[341136399,1730454645756,-769.26,0.00041264,3]
[341136400,1730454645766,-500.0,0.00041264,3]
[341136401,1730454645776,-87.23111887,0.00041264,3]
[341136419,1730454722763,153.0,0.00035616,2]
[341136420,1730454724904,222.54425,0.00035972,2]
[341136421,1730454728555,169.9325,0.00035972,2]
[341136422,1730454737865,177.29,0.00019178,2]
[341136423,1730454822948,157.76,0.00015342,2]
[341136425,1730454888162,222.42,0.000231,30]
[341136426,1730454905241,222.42,0.0002101,2]
[341136428,1730455339778,158.41,0.00015342,2]
[341136429,1730455602095,-209.22,0.000316,2]
[341136430,1730455602115,-180.0,0.00034,120]
[341136431,1730455602135,-1109.03266119,0.00035516,2]
[341136432,1730455628141,-247.0,0.000342,2]
[341136433,1730455628160,-1873.22803881,0.00035516,2]
[341136434,1730455628179,-1600.0,0.00035615,2]
[341136435,1730455628198,-1076.0,0.00035615,2]
[341136436,1730455628218,-153.0,0.00035616,2]
[341136437,1730455628238,-153.0,0.00035616,2]
[341136438,1730455628258,-153.0,0.00035616,2]
[341136439,1730455628278,-153.0,0.00035616,2]
[341136440,1730455628298,-153.0,0.00035616,2]
[341136441,1730455628317,-153.0,0.00035616,2]
[341136442,1730455628337,-153.0,0.00035616,2]
[341136443,1730455628356,-11531.99878001,0.00035616,2]
[341136444,1730455628375,-150.0,0.00036,120]
[341136445,1730455628396,-326.77978888,0.0003741,2]
[341136446,1730455629092,-343.28021112,0.0003741,2]
[341136447,1730455629112,-281.03,0.00038302,2]
[341136448,1730455629132,-208.17,0.00038416,2]
[341136449,1730455629151,-299.99,0.00038852,120]
[341136450,1730455629170,-500.44503906,0.00038853,2]
[341136451,1730455629188,-500.44503906,0.00038853,2]
[341136452,1730455629208,-789.12622933,0.00038853,2]
[341136453,1730455751154,-2711.0122,0.00035515,2]
[341136455,1730455831851,-13250.0,0.000388,60]
[341136456,1730455831861,-351.2,0.00039,2]
[341136457,1730455831871,-23900.0,0.00039228,2]
[341136458,1730455831882,-161.04,0.00039499,120]
[341136459,1730455831892,-5629.88,0.00039674,2]
[341136460,1730455831902,-670.06,0.00039674,2]
[341136461,1730455831913,-537.47,0.00039817,2]
[341136462,1730455831923,-250.0,0.00039844,2]
[341136463,1730455831933,-1115.41,0.00039845,2]
[341136464,1730455831943,-1000.0,0.00039905,2]
[341136465,1730455831953,-1000.0,0.00040278,2]
[341136466,1730455831963,-2054.76275303,0.00040597,2]
[341136467,1730455832072,-1283.39985363,0.00040597,2]
[341136468,1730455832084,-571.51368121,0.00040597,2]
[341136469,1730455832097,-2261.75,0.00040597,2]
[341136470,1730455832109,-465.78806071,0.00040597,2]
[341136471,1730455832124,-665.18959959,0.00040597,2]
[341136472,1730455832137,-750.0,0.00040597,2]
[341136482,1730455837864,-32393.95002776,0.00040597,2]
[341136483,1730455838194,-1355.06,0.00040597,2]
[341136615,1730455839932,-14095.24538634,0.00040597,2]
[341136616,1730455840094,-13497.77945698,0.00040597,2]
[341136617,1730455840103,-1871.02324921,0.00040619,2]
[341136618,1730455840112,-49635.84424268,0.00040628,2]
[341136619,1730455840124,-406.24944498,0.00040628,2]
[341136620,1730455840146,-4882.16121503,0.00040628,2]
[341136621,1730455840277,-1532.72082699,0.00040628,2]
[341136622,1730455840303,-3767.65000001,0.00040628,2]
[341136623,1730455840316,-4849.0,0.00040628,2]
[341136626,1730455842840,-4320.81308956,0.00040628,2]
[341136627,1730455842850,-5691.32649519,0.00040633,2]
[341136629,1730455844072,-166.47251785,0.00040633,2]
[341136636,1730455845956,-324.72072431,0.00040633,2]
[341136650,1730455846403,158.79,0.00015342,2]
[341136659,1730455849665,253.085,0.00035972,2]
[341136660,1730455865641,250.0,0.00017,2]
[341136661,1730455866729,300.0,0.00019,2]
[341136662,1730455867811,350.0,0.00021,2]
[341136663,1730455868910,400.0,0.00023,2]
[341136664,1730455869986,450.0,0.00025,2]
[341136665,1730455871055,500.0,0.00027,2]
[341136666,1730455872146,550.0,0.00029,2]
[341136667,1730455902846,153.0,0.00035616,2]
[341136668,1730455912015,153.0,0.00035616,2]
[341136669,1730455966675,424.2,0.0001726,7]
[341136670,1730456366555,156.82,0.00015342,2]
[341136671,1730456708213,17760.57,0.00016,2]
[341136672,1730456708238,20559.44918474,0.00016,2]
[341136673,1730456708263,18000.0,0.00016,2]
[341136674,1730456708289,30397.61378732,0.00016,2]
[341136675,1730456708435,46531.83492628,0.00016,2]
[341136677,1730456719618,5000.0,9e-05,2]
[341136720,1730456838207,-7558.55885852,0.00025258,2]
[341136721,1730456838229,-200.0,0.0003,2]
[341136722,1730456838264,-4966.62665,0.00034551,2]
[341136723,1730456838286,-2715.74597565,0.00034725,2]
[341136724,1730456838308,-2149.8304377,0.00035,2]
[341136725,1730456838332,-153.0,0.00035616,2]
[341136726,1730456838354,-244.748,0.00035972,2]
[341136727,1730456838374,-813.55150367,0.00035972,2]
[341136728,1730456850106,-489.4688694,0.00035972,2]
[341136729,1730456864690,157.17,0.00015342,2]
[341136732,1730456885010,-169.0,0.0004,120]
[341136733,1730456885036,-43.77262499,0.0004,120]
[341136734,1730456885068,-160.55891797,0.0004,120]
[341136735,1730456885090,-254.19506745,0.0004,120]
[341136736,1730456885119,-212.77262499,0.00040995,120]
[341136737,1730456885166,-212.77262498,0.00041448,120]
[341136738,1730456885199,-212.77262498,0.000419,120]
[341136739,1730456885226,-1000.0,0.00041982,120]
[341136740,1730456885248,-2000.0,0.00041982,120]
[341136741,1730456885270,-435.1111024,0.00041982,120]
[341136742,1730456885292,-1255.22813963,0.00041982,120]
[341136743,1730456885372,-1000.0,0.00041982,120]
[341136744,1730456885556,-53.07186037,0.00041982,120]
[341136745,1730456885580,-167.5,0.00042,120]
[341136746,1730456885607,-779.42813963,0.00042256,120]
[341136747,1730456885689,-220.57186037,0.00042256,120]
[341136748,1730456885717,-1000.0,0.0004253,120]
[341136749,1730456885741,-1070.17255187,0.00042667,120]
[341136750,1730456929036,212.77262498,0.000399,120]
[341136751,1730456929059,212.77262498,0.000399,120]
[341136752,1730456929080,73.45475004,0.000399,120]
[341136753,1730456945094,-7960.7262054,0.00022,15]
[341136754,1730456945114,-444.68381763,0.000275,2]
[341136755,1730456967099,-163.165,0.00035972,2]
[341136757,1730456971106,-656.57,0.00036973,2]
[341136791,1730457032055,-393.3,0.00038089,2]
[341136792,1730457032065,-200.0,0.00038634,2]
[341136793,1730457032076,-7820.2871555,0.00038645,2]
[341136794,1730457032092,-1500.0,0.00038645,2]
[341136795,1730457032174,-3260.31394988,0.00038645,2]
[341136796,1730457032184,-3498.97833986,0.00038645,2]
[341136797,1730457032247,-7820.42055476,0.00038645,2]
[341136798,1730457032256,-300.0,0.00038677,2]
[341136799,1730457032265,-393.3,0.00038701,2]
[341136800,1730457032275,-150.99,0.00038701,2]
[341136801,1730457032284,-400.0,0.000388,60]
[341136802,1730457032293,-250.0,0.00038813,2]
[341136803,1730457032302,-268.73,0.00038829,2]
[341136804,1730457032311,-500.0,0.00038863,2]
[341136805,1730457032321,-3217.12564583,0.00039,7]
[341136806,1730457032330,-2770.00696314,0.00039233,2]
[341136807,1730457032341,-3834.18185265,0.00039233,2]
[341136808,1730457032352,-1054.34457799,0.00039233,2]
[341136809,1730457032364,-531.91499452,0.00039233,2]
[341136810,1730457032375,-169.34755155,0.00039237,2]
[341136820,1730457038530,-487.22244845,0.00039237,2]
[341136821,1730457038539,-393.3,0.00039313,2]
[341136822,1730457038548,-157.6,0.00039524,2]
[341136823,1730457038557,-1882.79433922,0.00039654,2]
[341136824,1730457038571,-299.1312712,0.00039654,2]
[341136825,1730457038601,-318.07438958,0.00039654,2]
[341136826,1730457038610,-2439.62,0.00039762,2]
[341136827,1730457038619,-587.6454,0.00039888,7]
[341136828,1730457038631,-1000.0,0.00039897,2]
[341136829,1730457038640,-393.3,0.00039925,2]
[341136830,1730457038649,-5090.65921576,0.0004,2]
[341136831,1730457038658,-7398.40587583,0.0004,4]
[341136832,1730457038667,-1295.07731908,0.0004,5]
[341136833,1730457038677,-209.37637704,0.0004,2]
[341136834,1730457038687,-160.97,0.00040108,2]
[341136835,1730457038698,-1353.32,0.0004023,2]
[341136836,1730457038708,-467.6266,0.00040412,2]
[341136837,1730457038717,-1538.1728,0.00040499,2]
[341136838,1730457038727,-1000.0,0.000405,2]
[341136839,1730457038736,-1160.8563,0.000405,2]
[341136840,1730457038745,-226.53403528,0.000405,28]
[341136841,1730457038754,-460.07,0.00040502,10]
[341136842,1730457038763,-793.61,0.00040502,10]
[341136843,1730457038773,-661.34,0.00040502,10]
[341136844,1730457038782,-10000.0,0.0004051,5]
[341136845,1730457038791,-455.48493544,0.00040511,31]
[341136992,1730457040159,-44.51506456,0.00040511,31]
[341136994,1730457040169,-500.0,0.00040511,31]
[341136996,1730457040180,-88.66278298,0.00040511,31]
[341137008,1730457040246,-267.91433624,0.00040511,31]
[341137011,1730457040256,-2242.59366376,0.00040512,2]
[341137032,1730457040423,-5641.54607793,0.00040512,2]
[341137034,1730457040435,-12583.16697274,0.00040512,2]
[341137045,1730457043831,-499.08917265,0.000405,2]
[341137046,1730457043841,-47873.33628963,0.00040512,2]
[341137065,1730457046174,-554.510848,0.00040512,2]
[341137066,1730457046322,-308.46397309,0.00040512,2]
[341137067,1730457046334,-259.7054,0.00040512,2]
[341137075,1730457102485,153.0,0.00035616,2]
[341137076,1730457104607,165.214,0.00035972,2]